Cogmind - Beta 16 --- EXPLORER MODE // 2025.11.14 @ 11:31:57 Player: K.K.Y. Result: Destroyed by G-50 Soldier with Heavy Laser Performance ------------- Evolutions (4) 2000 Regions Visited (5) 1000 Robots Destroyed (60) 300 Value Destroyed (2146) 2146 Prototype IDs (12) 240 Alien Tech Used (0) 0 Bonus (3051) 3051 TOTAL SCORE: 8737 Bonus ------- Follower Combat Kills 251 Delivered SUBCON Basin 2000 Registered with UFD 300 Met Optimus in HQ 500 Cogmind --------- Core Integrity 0/850 Matter 94/300 Energy 7/100 System Corruption 1% Temperature Cool (84) Movement Core (2100) Ox41 Location -6/Factory Parts ------- > --- POWER (2) -------- (None) > --- PROPULSION (4) --- (None) > --- UTILITY (8) ------ High-capacity Storage Unit Huge Storage Unit Tech Extrapolator > --- WEAPON (2) ------- Compact Ion Cannon > --- INVENTORY (25) --- Light Humpback Humpback Machine Analyzer Advanced Terrain Scan Processor Transport Network Coupler Authchip [R/NC] Authchip [R/Combat] Authchip [R/Combat] Shock Rifle Salvaging Laser Heavy Plasma Cannon High-powered Shotgun Scythe Companion Sword DRS Beacon (Ready) PL-3XN's Ring of Power Peak State ------------ > --- POWER ------------ Nuclear Core > --- PROPULSION ------- Light Treads Medium Treads Spiked Medium Treads Spiked Medium Treads > --- UTILITY ---------- Huge Storage Unit Deep Structural Scanner Machine Analyzer Light Armor Plating Medium Armor Plating Hardened Medium Armor Plating Tech Extrapolator > --- WEAPON ----------- Gauss Rifle Gauss Cannon > --- INVENTORY -------- Light Treads Advanced Treads High-capacity Storage Unit Light Humpback Humpback Machine Analyzer Advanced Terrain Scan Processor Transport Network Coupler Authchip [R/NC] Authchip [R/Combat] Authchip [R/Combat] Shock Rifle Salvaging Laser Heavy Particle Cannon Heavy Plasma Cannon Compact Ion Cannon High-powered Shotgun Gauss Rifle Scythe Companion Sword DRS Beacon PL-3XN's Ring of Power [Rating: 53] Favorites ----------- Power Improved Ion Engine Engine Improved Ion Engine Power Core Nuclear Core Propulsion Light Treads Treads Light Treads Flight Unit VTOL Module Utility High-capacity Storage Unit Device Deep Structural Scanner Storage High-capacity Storage Unit Processor Tech Extrapolator Protection Light Armor Plating Weapon Barrage Gun Energy Gun Particle Gun Energy Cannon Subdweller Beam Cannon Ballistic Gun Barrage Gun Ballistic Cannon Gauss Cannon Build | -11 -10 -10 -8 -8 -6 ------- Run | Yrd Mat Sub Rec Scr Fac Slots Evolved 9 | . 1 . . . 8 Power 1 | . . . . . 1 Propulsion 2 | . 1 . . . 1 Utility 6 | . . . . . 6 Weapon . | . . . . . . Parts Attached 47 | 7 6 13 4 3 14 Power 4 | 1 . 2 . 1 . Engine 3 | 1 . 2 . . . Core 1 | . . . . 1 . Reactor . | . . . . . . Propulsion 16 | 2 3 3 2 1 5 Treads 15 | 2 3 3 2 1 4 Leg . | . . . . . . Wheel . | . . . . . . Hover . | . . . . . . Flight 1 | . . . . . 1 Utility 12 | 2 1 3 2 . 4 Device 1 | . . . . . 1 Storage 3 | 1 1 . 1 . . Processor 2 | . . . 1 . 1 Hackware . | . . . . . . Protection 6 | 1 . 3 . . 2 Artifact . | . . . . . . Weapon 15 | 2 2 5 . 1 5 Energy Gun 1 | . . 1 . . . Energy Cannon 3 | . . 1 . . 2 Ballistic Gun 10 | 2 2 3 . 1 2 Ballistic Cannon 1 | . . . . . 1 Launcher . | . . . . . . Special Weapon . | . . . . . . Impact Weapon . | . . . . . . Slashing Weapon . | . . . . . . Piercing Weapon . | . . . . . . Special Melee Weapon . | . . . . . . Unidentified Prototypes 1 | . . . . . 1 Parts Lost 18 | . . 1 . . 17 Power 1 | . . . . . 1 Propulsion 6 | . . . . . 6 Utility 6 | . . 1 . . 5 Weapon 5 | . . . . . 5 Highest Loss Streak 14 | . . 1 . . 14 To Critical Strikes 3 | . . . . . 3 Average Backups 15 | . 10 17 9 17 18 Power . | . 1 2 . . . Propulsion 1 | . 1 2 . 1 . Utility 8 | . 3 7 8 11 10 Weapon 4 | . 3 6 . 4 8 Tool/Special . | . . . . . . Unused Backups 23 | . 1 7 2 . 13 Power 5 | . 1 2 2 . . Propulsion . | . . . . . . Utility 9 | . . 1 . . 8 Weapon 9 | . . 4 . . 5 Tool/Special . | . . . . . . Average Slot Usage (%) 91 | . 78 98 99 100 66 Engine 9 | . 3 11 12 11 . Treads 34 | . 33 37 37 37 22 Storage 11 | . 12 12 12 12 6 Processor 5 | . . . 11 12 11 Protection 6 | . 11 11 . . 5 Ballistic Gun 21 | . 15 23 25 25 8 Peak Build Rating 53 | 7 8 32 32 32 53 Average Rating 21 | 4 7 17 23 27 38 On Entrance 16 | . 7 8 32 24 30 Avg Prop Armor Cover (%) . | . . . . . . Naked Turns . | . . . . . . Heaviest Build 124 | 19 50 58 94 94 124 Greatest Support 104 | 40 60 60 62 62 104 Greatest Overweight (x) 41 | . 1 . 1 2 41 Average Overweight (x) . | . . . . 1 1 Largest Inventory Capacity 25 | 10 20 20 25 25 25 Average Capacity 21 | 8 17 20 23 25 25 Most Carried 25 | 3 19 20 20 25 25 Average Carried 17 | . 10 19 11 19 22 Final Capacity 25 | 10 20 20 25 25 25 Final Carried 23 | . 19 20 12 23 18 Class Distribution -------------------- 66% | Hacker-Mutant 32% | Commander-Mutant Dominant Class ---------------- Hacker-Mutant | -10/Materials Hacker-Mutant | -10/Subcaves Commander-Mutant | -8/Recycling Commander-Mutant | -8/Scraptown Hacker-Mutant | -6/Factory Resources | -11 -10 -10 -8 -8 -6 ----------- Run | Yrd Mat Sub Rec Scr Fac Matter Collected 2099 | 212 389 894 89 . 515 Remotely . | . . . . . . Salvage Created 2119 | . 502 395 104 . 1118 Parts 133 | . 35 32 8 . 58 Haulers Intercepted 3 | . 2 . . . 1 Recyclers Shooed 2 | . . . . . 2 Parts Field Recycled . | . . . . . . Retrieved Matter . | . . . . . . Parts Self-Destructed . | . . . . . . Prevented . | . . . . . . Parts Restored . | . . . . . . Kills | -11 -10 -10 -8 -8 -6 ------- Run | Yrd Mat Sub Rec Scr Fac Combat Hostiles Destroyed 45 | . 10 12 2 . 21 Guns 32 | . 10 10 2 . 10 Cannons 11 | . . 2 . . 9 AOE 1 | . . . . . 1 Classes Destroyed 15 | . 5 3 . . 7 Builder 2 | . . . . . 2 Hauler 3 | . 2 . . . 1 Mechanic 1 | . 1 . . . . Operator 1 | . . . . . 1 Turret 2 | . . 2 . . . Watcher 6 | . 3 . . . 3 Swarmer 10 | . 4 4 . . 2 Grunt 13 | . 6 1 . . 6 Brawler 1 | . . . . . 1 Duelist 1 | . . . . . 1 Sentry 3 | . . 1 2 . . Hunter 6 | . . . . . 6 Programmer 4 | . . . . . 4 Behemoth 1 | . . . . . 1 Subdweller 6 | . . 6 . . . Best Kill Streak 4 | . 4 4 1 . 4 Combat Bots Only 4 | . 4 4 1 . 3 Max Kills in Single Turn 2 | . 1 1 1 . 2 Gunslinging . | . . . . . . Exploded 1 | . . . . . 1 Melee . | . . . . . . Uniques/NPCs Destroyed . | . . . . . . Combat | -11 -10 -10 -8 -8 -6 -------- Run | Yrd Mat Sub Rec Scr Fac Hostile Shots Fired 609 | . 48 123 8 . 430 Missed 187 | . 18 51 4 . 114 Hits 422 | . 30 72 4 . 316 Melee 8 | . . . . . 8 Projectile 414 | . 30 72 4 . 308 AOE 1 | . . 1 . . . Critical Strikes 17 | . 1 2 . . 14 Damage Taken 4318 | . 235 547 58 . 3478 Core 942 | . 22 66 . . 854 Absorbed by Shields . | . . . . . . Ignored by Resistances 2585 | . 144 337 34 . 2070 Core Remaining (%) 82 | 100 . . . 64 . Volleys Fired 297 | . 65 129 5 2 96 Largest 2 | . 2 2 2 2 2 Hottest 165 | . 40 80 61 58 165 Shots Fired 474 | . 83 224 10 4 153 Gun 394 | . 83 210 10 4 87 Cannon 80 | . . 14 . . 66 Launcher . | . . . . . . Special . | . . . . . . Kinetic 429 | . 83 208 10 4 124 Thermal 45 | . . 16 . . 29 Explosive . | . . . . . . Electromagnetic . | . . . . . . Robot Hit Streak 29 | . 15 23 6 . 29 Robot Miss Streak 3 | . 3 2 1 . 2 Penetration Max 1 | . . . . . 1 Secondary Targets 3 | . 1 2 . . . Max Gunslinging Chain 1 | . 1 1 . . . Shots Hit Robots 289 | . 71 73 8 . 137 Core Hits 115 | . 28 18 3 . 66 Critical Kills 2 | . . . . . 2 Critical Parts Destroyed 1 | . 1 . . . . Critical Strikes 11 | . 1 . . . 10 Meltdown 1 | . . . . . 1 Destroy 2 | . 1 . . . 1 Blast 8 | . . . . . 8 Melee Attacks . | . . . . . . Impact . | . . . . . . Slashing . | . . . . . . Piercing . | . . . . . . Sneak Attacks . | . . . . . . Combat Hostiles . | . . . . . . Follow-up Attacks . | . . . . . . Damage Inflicted 5730 | . 914 1204 185 . 3427 Guns 3898 | . 903 1091 185 . 1719 Cannons 1821 | . . 113 . . 1708 Explosions . | . . . . . . Melee . | . . . . . . Ramming 11 | . 11 . . . . Kinetic 4801 | . 903 1091 185 . 2622 Thermal 918 | . . 113 . . 805 Explosive . | . . . . . . Electromagnetic . | . . . . . . Impact . | . . . . . . Slashing . | . . . . . . Piercing . | . . . . . . Highest Corruption 1 | . . . . . 1 Average Corruption 1 | . . . . . 1 Corruption Purged . | . . . . . . Corruption Blocked . | . . . . . . Effects 1 | . . . . . 1 Misfires 1 | . . . . . 1 Overload Shots . | . . . . . . Overflow Damage 50 | . . . . . 50 Projectiles 50 | . . . . . 50 Explosions . | . . . . . . Melee . | . . . . . . Knockbacks 8 | . . . . . 8 Impact . | . . . . . . Kinetic 7 | . . . . . 7 Secondary 1 | . . . . . 1 Self-Inflicted Damage . | . . . . . . Shots . | . . . . . . Rammed 3 | . 3 . . . . Targets Rammed 3 | . 3 . . . . Kicked . | . . . . . . Crushed . | . . . . . . Highest Temperature 174 | . 19 174 37 6 132 Average Temperature 32 | . 7 23 18 3 41 Received Heat Transfer 1262 | . 216 470 18 . 558 Siege Activations . | . . . . . . Martial Activations . | . . . . . . Shielding Activations . | . . . . . . Robots Disrupted . | . . . . . . Combat Hostiles . | . . . . . . Robots Corrupted . | . . . . . . Combat Hostiles . | . . . . . . Parts Fried 1 | . . . . . 1 Impact Corruptions . | . . . . . . Robots Melted 1 | . . . . . 1 Combat Hostiles 1 | . . . . . 1 Parts Melted 4 | . . 1 . . 3 Heat Transferred 1184 | . . 148 . . 1036 Parts Sabotaged . | . . . . . . Parts Stolen . | . . . . . . Parts Stripped . | . . . . . . Power Chain Reactions . | . . . . . . Alert | -11 -10 -10 -8 -8 -6 ------- Run | Yrd Mat Sub Rec Scr Fac Maximum Alert Level . | . . . . . . Low Security (%) 100 | 100 100 . 100 . 100 Level 1 . | . . . . . . Level 2 . | . . . . . . Level 3 . | . . . . . . Level 4 . | . . . . . . Level 5 . | . . . . . . High Security . | . . . . . . Max Security . | . . . . . . Peak Influence 85 | . 85 . 66 . 65 Initial . | . . . . . . Average 4 | . 4 . 1 . 8 Influence Increases 1261 | . 312 220 86 . 643 Destroy 0b10 Robot/C 840 | . 200 160 60 . 420 Destroy 0b10 Robot/NC 70 | . 30 . 5 . 35 Destroy Leader 188 | . 60 . . . 128 Allied During Kill 4 | . . . 4 . . Trap Triggered on 0b10 20 | . . . . . 20 Successful Hack 10 | . 7 . . . 3 Disable Machine 4 | . . . . . 4 Destroy Structure 20 | . . . 17 . 3 Lose Combat Pursuer 105 | . 15 60 . . 30 Influence Decreases 1224 | . 312 220 86 . 606 Time Decay 1108 | . 312 220 86 . 490 Lost Part 91 | . . . . . 91 Lost Ally 10 | . . . . . 10 Purge Threat 15 | . . . . . 15 Squads Dispatched 7 | . . . . . 7 Investigation 2 | . . . . . 2 Extermination 3 | . . . . . 3 Reinforcement 2 | . . . . . 2 Assault . | . . . . . . Garrison . | . . . . . . Intercept . | . . . . . . Searches Triggered . | . . . . . . Construction Impeded 1 | . . . . . 1 Haulers Reinforced 1 | . . . . . 1 Active Scanning Responses . | . . . . . . Cargo Convoy Interrupts . | . . . . . . Stealth | -11 -10 -10 -8 -8 -6 --------- Run | Yrd Mat Sub Rec Scr Fac Distress Signals 2 | . 1 . . . 1 Communications Jammed . | . . . . . . Distress Signals . | . . . . . . Times Spotted 87 | . 26 16 4 6 35 Peak Tracking Total 6 | . 5 6 2 4 6 Tactical Retreats 5 | . 1 2 . 1 1 Traps | -11 -10 -10 -8 -8 -6 ------- Run | Yrd Mat Sub Rec Scr Fac Traps Triggered 6 | . 3 2 . . 1 Indirectly . | . . . . . . Trap Hack Attempts . | . . . . . . Triggered . | . . . . . . Disarmed . | . . . . . . Reprogrammed 6 | . . . . . 6 Reused 2 | . . . . . 2 Traps Extracted . | . . . . . . Installed . | . . . . . . Triggered 2 | . . . . . 2 Machines | -11 -10 -10 -8 -8 -6 ---------- Run | Yrd Mat Sub Rec Scr Fac Machines Disabled 5 | . . 1 . 3 1 Max in Single Turn 1 | . . 1 . 1 1 Garrison Access 1 | . . . . . 1 Machines Repaired . | . . . . . . Machines Dismantled . | . . . . . . Machines Sabotaged . | . . . . . . Overloaded Fab Kills . | . . . . . . Hacking | -11 -10 -10 -8 -8 -6 --------- Run | Yrd Mat Sub Rec Scr Fac Machines Accessed 15 | . 2 3 . 5 5 Terminals 3 | . 1 . . . 2 Fabricators 2 | . . . . . 2 Repair Stations . | . . . . . . Recycling Units 1 | . 1 . . . . Scanalyzers . | . . . . . . Garrison Access 1 | . . . . . 1 Total Hacks 49 | . 6 8 . 12 23 Successful 36 | . 4 8 . 12 12 Failed 13 | . 2 . . . 11 Catastrophic . | . . . . . . Database Lockouts . | . . . . . . Manual . | . . . . . . Terminals 15 | . 5 . . . 10 Fabricators 9 | . . . . . 9 Repair Stations . | . . . . . . Recycling Units 1 | . 1 . . . . Scanalyzers . | . . . . . . Garrison Access 4 | . . . . . 4 Terminal Hacks 27 | . 3 8 . 12 4 Record 11 | . . 6 . 5 . Part Schematic 1 | . . . . . 1 Robot Analysis 5 | . . . . 5 . Prototype ID Bank 1 | . 1 . . . . Open Door 2 | . . 1 . 1 . Unreport Threat 1 | . . . . . 1 Locate Traps 1 | . 1 . . . . Reprogram Traps 1 | . . . . . 1 Hauler Manifests 1 | . . . . . 1 Registered Components 1 | . 1 . . . . Proto ID Catalog 1 | . . . . 1 . Release Object 1 | . . 1 . . . Fabricator Hacks 7 | . . . . . 7 Load Schematic 4 | . . . . . 4 Build 3 | . . . . . 3 Repair Station Hacks . | . . . . . . Recycling Unit Hacks 1 | . 1 . . . . Retrieve Components 1 | . 1 . . . . Scanalyzer . | . . . . . . Garrison Access Hacks 1 | . . . . . 1 Seal Access 1 | . . . . . 1 Unauthorized Hacks . | . . . . . . Terminals . | . . . . . . Fabricators . | . . . . . . Repair Stations . | . . . . . . Recycling Units . | . . . . . . Scanalyzers . | . . . . . . Garrison Access . | . . . . . . Data Cores Recovered . | . . . . . . Used . | . . . . . . Hacking Detections 5 | . 1 . . . 4 Full Trace Events 2 | . . . . . 2 Feedback Events . | . . . . . . Feedback Blocked . | . . . . . . Robot Schematics Acquired . | . . . . . . Robots Built . | . . . . . . Authchips . | . . . . . . Time . | . . . . . . Total Robot Build Rating . | . . . . . . Part Schematics Acquired 21 | . . . 5 8 8 Parts Built 4 | . . . . . 4 Authchips . | . . . . . . Time 182 | . . . . . 182 Total Part Build Rating 15 | . . . . . 15 Part Studies Acquired . | . . . . . . Parts Repaired . | . . . . . . Time . | . . . . . . Parts Recycled . | . . . . . . Recycled Matter . | . . . . . . Retrieved Matter . | . . . . . . Retrieved Components . | . . . . . . Parts Scanalyzed . | . . . . . . Part Schematics Acquired . | . . . . . . Parts Damaged . | . . . . . . Bothacking | -11 -10 -10 -8 -8 -6 ------------ Run | Yrd Mat Sub Rec Scr Fac Used RIF Installer . | . . . . . . Robots Hacked . | . . . . . . Non-combat . | . . . . . . Combat . | . . . . . . Robot Hacks Applied . | . . . . . . Relay Couplers Released . | . . . . . . Fabnet Peak Effective % . | . . . . . . Robots Rewired 9 | . . . 9 . . Allies Hacked . | . . . . . . Hacks Repelled . | . . . . . . Allies | -11 -10 -10 -8 -8 -6 -------- Run | Yrd Mat Sub Rec Scr Fac Total Allies 9 | . . . 9 . . Largest Group 9 | . . . 9 9 1 Highest-Rated Group 124 | . . . 122 124 11 Highest-Rated Ally 34 | . . . 34 34 11 Total Orders 18 | . . . . 18 . STAY 9 | . . . . 9 . FOLLOW 7 | . . . . 7 . PICKUP 2 | . . . . 2 . Ally Attacks 18 | . . . 1 17 . Total Damage 1026 | . . . 106 920 . Kills 15 | . . . 2 13 . Allies Corrupted . | . . . . . . Allies Melted 1 | . . . . 1 . Intel | -11 -10 -10 -8 -8 -6 ------- Run | Yrd Mat Sub Rec Scr Fac Active Infowar (turns) 1741 | . . . . . 1741 Structural 1062 | . . . . . 1062 Machine Analysis 1741 | . . . . . 1741 Robot Analysis Total 5 | . . . . 5 . Derelict Logs Recovered 3 | . . 2 . 1 . Drone Launches . | . . . . . . Drone Recoveries . | . . . . . . Exploration | -11 -10 -10 -8 -8 -6 ------------- Run | Yrd Mat Sub Rec Scr Fac Turns Passed 17256 | 70 2883 5610 1989 4733 1971 Spaces Moved 7762 | 42 1498 3145 825 1698 554 Core 13 | 9 . . . . 4 Treads 7749 | 33 1498 3145 825 1698 550 Legs . | . . . . . . Wheels . | . . . . . . Hover . | . . . . . . Flight . | . . . . . . Fastest Speed 50 | 50 160 160 155 214 235 Average Speed 191 | 136 174 160 201 240 255 Slowest Speed 2100 | 160 240 160 241 332 2100 Overloaded Moves . | . . . . . . Propulsion Burnouts . | . . . . . . Robots Hopped . | . . . . . . Potential Cave-ins . | . . . . . . Cave-ins Triggered . | . . . . . . Exploration Rate (%) 68 | 5 100 98 99 92 14 Regions Visited 5 Branch Regions 3 Pre-discovered Areas 2 | . . 2 . . . Known Exits Taken 5 | 1 1 1 1 1 . Unknown Exits Taken . | . . . . . . Scrap Searched 18 | . . 11 . 7 . Spaces Dug 1 | . . 1 . . . Terrain Destroyed 4 | . . 1 . . 3 Melee . | . . . . . . Projectile 4 | . . 1 . . 3 AOE . | . . . . . . Terrain Rammed . | . . . . . . Walls Destroyed . | . . . . . . Machines Disabled . | . . . . . . Actions | -11 -10 -10 -8 -8 -6 --------- Run | Yrd Mat Sub Rec Scr Fac Total 9706 | 55 1687 3521 1145 2343 955 Wait 1422 | . 82 187 259 620 274 Move 7757 | 41 1497 3144 824 1697 554 Hop . | . . . . . . Pick Up 76 | 7 28 10 10 16 5 Fast Attach 7 | . . 2 . . 5 Attach 32 | 7 6 5 1 1 12 Detach 8 | . . 5 . . 3 Swap 23 | . 3 11 3 3 3 Drop 42 | . 3 28 4 4 3 Fire 297 | . 65 129 5 2 96 Melee . | . . . . . . Ram . | . . . . . . Kick . | . . . . . . Crush 3 | . 3 . . . . Escape Stasis . | . . . . . . Rewire 39 | . . . 39 . . Trap . | . . . . . . Miscellaneous . | . . . . . . Route ------- -11/Scrapyard -10/Materials (discovered 6 exits: *Mat x3 / *Min x2 / *Sub) -10/Subcaves (discovered 4 exits: *Mat x2 / *Rec / *Scr) -8/Recycling (discovered 2 exits: *Fac / *Scr) -8/Scraptown (discovered 2 exits: *Fac x2) -6/Factory (discovered 1 exit: *Fac) History --------- Turn | Location | Event 44 | -11/Scrapyard | Identified exit to Materials 44 | -11/Scrapyard | Discovered exit to Materials (range 16) 71 | -11/Scrapyard | Entered Materials 71 | -10/Materials | Evolved 1 slot: Propulsion x1 206 | -10/Materials | Identified exit to Subcaves 206 | -10/Materials | Discovered exit to Subcaves (range 4) 308 | -10/Materials | Build established: Hacker-Mutant 310 | -10/Materials | Identified exit to Materials 310 | -10/Materials | Discovered exit to Materials (range 9) 506 | -10/Materials | Discovered exit to Materials (range 16) 735 | -10/Materials | Identified exit to Mines 735 | -10/Materials | Discovered exit to Mines (range 8) 992 | -10/Materials | Discovered exit to Materials (range 4) 1099 | -10/Materials | Discovered exit to Mines (range 13) 2954 | -10/Materials | Entered Subcaves 2955 | -10/Subcaves | Approached by a straggling Scientist 2984 | -10/Subcaves | Shifting Twisted Machinery released Sub. Beam Cannon 2993 | -10/Subcaves | Shifting Twisted Machinery released Sub. Shrapnel Launcher 3268 | -10/Subcaves | Identified exit to Materials 3268 | -10/Subcaves | Discovered exit to Materials (range 9) 3301 | -10/Subcaves | Shifting Twisted Machinery released Sub. Monowheel 3483 | -10/Subcaves | Shifting Twisted Machinery released Barrage Gun 3513 | -10/Subcaves | Learned location of Zion (-7) 3892 | -10/Subcaves | Shifting Twisted Machinery released Sub. Monowheel 3896 | -10/Subcaves | Shifting Twisted Machinery released Spk. Treads 4275 | -10/Subcaves | Scientist uncovered a shortcut to Scraptown 4369 | -10/Subcaves | Visited Clippyterm 4374 | -10/Subcaves | Learned location of Extension (-4) 4374 | -10/Subcaves | Learned Research machine intel 5213 | -10/Subcaves | Discovered exit to Materials (range 10) 5672 | -10/Subcaves | Learned 2 Materials zone layouts 5720 | -10/Subcaves | A swath of the cavern ceiling suddenly collapsed 7253 | -10/Subcaves | Disturbed a concealed Subdweller 7281 | -10/Subcaves | Disturbed a concealed Subdweller 7705 | -10/Subcaves | Identified exit to Recycling 7705 | -10/Subcaves | Discovered exit to Recycling (range 13) 8285 | -10/Subcaves | Found SUBCON Basin 8564 | -10/Subcaves | Entered Recycling 8565 | -8/Recycling | Joined Warlord attack on 0b10 via Recycling 8612 | -8/Recycling | Scanned before Scraplab entrance 8668 | -8/Recycling | Entered Scraplab 8853 | -8/Recycling | Tech Extrapolator generated special schematic: Deep Structural Scanner 9170 | -8/Recycling | Identified exit to Factory 9170 | -8/Recycling | Discovered exit to Factory (range 5) 9820 | -8/Recycling | Build established: Commander-Mutant 10364 | -8/Recycling | Identified exit to Scraptown 10364 | -8/Recycling | Discovered exit to Scraptown (range 2) 10553 | -8/Recycling | Entered Scraptown 10553 | -8/Scraptown | Accompanied by 9 allies 10707 | -8/Scraptown | Tech Extrapolator generated special schematic: Machine Rigger 10945 | -8/Scraptown | Heard Great Nut preacher, LISTEN AND RECITE! 10953 | -8/Scraptown | Visited Shadow of the Wyrm 11039 | -8/Scraptown | Visited CR-KLE's Repair Center 11670 | -8/Scraptown | Discovered exit to Factory (range 7) 11794 | -8/Scraptown | Scanned Subdweller tech in exchange for log data 11801 | -8/Scraptown | Learned Factory terminal intel 11878 | -8/Scraptown | Visited Red Mages 12030 | -8/Scraptown | Visited Cyclists 12182 | -8/Scraptown | Visited Assassins FH 12261 | -8/Scraptown | Visited The Evicted 12326 | -8/Scraptown | Visited UFD Registry 12326 | -8/Scraptown | Registered with UFD as "Autocutter" 12343 | -8/Scraptown | Visited SPCMW 12519 | -8/Scraptown | Visited Research Penetration Think Tank 12577 | -8/Scraptown | Visited LU-1G1's Boring Crew 12707 | -8/Scraptown | Visited Sword Containment 12731 | -8/Scraptown | Found Prototype Slashing Weapon 12797 | -8/Scraptown | Visited Curators Association 12875 | -8/Scraptown | Visited Analyses Database 12961 | -8/Scraptown | Visited Scrap Suit Storage 13031 | -8/Scraptown | Visited Scrapoid Pod Storage 13070 | -8/Scraptown | Visited DA-N13 Charitable Foundation 13091 | -8/Scraptown | Found DCF Scrap (28 items) 13135 | -8/Scraptown | Visited Science Guys 13241 | -8/Scraptown | Visited Derelict Rescue Squad 13260 | -8/Scraptown | Found DRS Beacon 13415 | -8/Scraptown | Delivered Scrap Shield to a Scientist 14794 | -8/Scraptown | Met Optimus 14794 | -8/Scraptown | Accepted into 0bPrime 15194 | -8/Scraptown | Civil war broke out across Scraptown 15207 | -8/Scraptown | Found PL-3XN's Ring of Power 15246 | -8/Scraptown | Lost 8 allies 15270 | -8/Scraptown | Discovered exit to Factory (range 5) 15282 | -8/Scraptown | Lost 3 allies 15286 | -8/Scraptown | Entered Factory 15286 | -6/Factory | Accompanied by 1 ally 15286 | -6/Factory | Evolved 8 slots: Power x1, Propulsion x1, Utility x6 15287 | -6/Factory | Loaded intel: 26 terminal locations 15579 | -6/Factory | Build established: Hacker-Mutant 15878 | -6/Factory | Fabricated Lgt. Humpback (x1) 15963 | -6/Factory | Fabricated Deep Structural Scanner (x1) 16441 | -6/Factory | Spotted B-75 Beast 16505 | -6/Factory | Destroyed B-75 Beast 16671 | -6/Factory | Fabricated Spk. Medium Treads (x2) 16725 | -6/Factory | Tech Extrapolator generated special schematic: Energy Deflector 16725 | -6/Factory | Identified exit to Factory 16725 | -6/Factory | Discovered exit to Factory (range 14) 17101 | -6/Factory | Core integrity fell below 50% 17128 | -6/Factory | Core integrity fell below 20% 17133 | -6/Factory | Lost 14 parts (1p4n5u4w) 17257 | -6/Factory | Destroyed by G-50 Soldier with Heavy Laser Last Messages --------------- 17223_ R-10 Processor collects Corrupted Gauss Rifle. 17224_ K-01 Serf collects debris. 17243_ R-10 Processor collects Corrupted Wheel. 17246_ R-10 Processor collects Corrupted Phase Shifter. 17246_ K-01 Serf collects debris. 17246_ W-25 Informer triggered Tesla Bomb Trap. 17246_ A bubble of electromagnetic force engulfs the area. 17246_ Imp. Hover Unit fried. 17246_ W-25 Informer destroyed. 17246_ Tesla Bomb Trap short circuited. 17246_ K-01 Serf destroyed. 17246_ A bubble of electromagnetic force engulfs the area. 17250_ R-10 Processor collects Corrupted Wheel. 17252_ G-50 Soldier IFF system glitched. 17252_ Destroyed Carbon-fiber Leg. 17255_ U-05 Engineer lays Concrete. Map ----- +----------------------------------------------------+ | ! # ######## ####### ??????????????????? | | # ########+####### ??????????????????? | | # ###### # ??????????????????? | | # ###### """ ####??????????????????? | | # ###### ""F"" ####??????????????????? | | # ###### "" "" # ??????????????????? | | ####### ###### =# ??????????????????? | | ####### ###### # ??????????????T???? | | ####### ###### [ ! # """?????????????????? | | ####### ###### *% # """?????????????????? | | ???#### % ##########/##### """ ?????????????? | | ???#### =%% % ## ?????????????? | | ???#### % ^ ## ?????????????? | | ???#### ^ =g= ##########?????????????? | | ???#### % == # ?????????????? | | ???#### % u # """""""""???????????? | | ???########### %= % # ?????????????? | | ???######### %% # """"""""" ####??????? | | ???######### u %# ? ####??????? | | ???########### %% %!= %# """"""""" ####??????? | | ????????###### %%% =] R ####??????? | | ???########### % =%[%%# """"""""" / ??????? | | ???########### [*=%%# ? ####??????? | | ???################## !=%# """"""""" ####??????? | | ???################## %*# ???????????? | | ???#### # @# [ ???????????? | | ???#### # % ############???????????? | | ???#### """"" """"" # ############???????????? | | ???#### """"" """"" # # ???????????? | | ???#### """ """ # # "" "" ""????""?????? | | ???#### # %% # "" ?""????????""?????? | | ???#### """"" """"" # # """?"""???????T"?????? | | ####### """"" """"" # # """ """???????""?????? | | ####### """ """ + % + """ """???????""?????? | | ####### !# # ???????????????? | | ####### # ########???????????????? | | ###+######+###### # ???????????????? | | """ ### ### # % # ???????????????? | | """ ### ### # # ???????????????? | | """ ### ### # # ???????????????????? | | ### ### """?""" + # ???????????????????? | | % ### ### """?""" # # ???????????????????? | | #+"#### ### """ """ # # ???????????????????? | | % % "% ### # # ???????????????????? | | " ### # # ???????????????????? | | "" #############^^^ ###+???????????????????? | | "" # # ???????????????????? | | """ # """""" + ???????????????????? | | """ + """""" # ???????????????????? | | """ # """""" # ?????????????????????? | +----------------------------------------------------+ Best States ------------- Heat Dissipation 37 Energy Generation 14 Energy Capacity 265 Matter Stores 300 Matter Capacity 300 Sight Range 16 Terrain Scan Density 10 Armor Coverage 600 Resistance: KI 35 Resistance: TH 35 Resistance: EX 35 Resistance: EM 35 Resistance: I 35 Resistance: S 35 Resistance: P 35 Evasion (%) 40 Recoil Reduction 4 Offensive Hacking 20 Authchip Count 3 Item Schematics ----------------- Deep Structural Scanner | -8/Recycling | Extrapolated Mak. Leg | -8/Recycling | Extrapolated Mak. Light Armor Plating | -8/Recycling | Extrapolated Battle Rifle | -8/Recycling | Extrapolated Barrage Gun | -8/Recycling | Extrapolated Machine Rigger | -8/Scraptown | Extrapolated Spk. Treads | -8/Scraptown | Extrapolated Mak. Targeting Computer | -8/Scraptown | Extrapolated Mak. Medium Armor Plating | -8/Scraptown | Extrapolated Mak. Ablative Armor | -8/Scraptown | Extrapolated Mak. Coolant Network | -8/Scraptown | Extrapolated Mak. Propulsion Shielding | -8/Scraptown | Extrapolated Lgt. Humpback | -8/Scraptown | Extrapolated Spk. Medium Treads | -6/Factory | Extrapolated Beamcaster | -6/Factory | Extrapolated Enh. Flamer | -6/Factory | Extrapolated Mak. Thermal Plating | -6/Factory | Extrapolated Slug Cannon | -6/Factory | Extrapolated Mak. Hover Unit | -6/Factory | Extrapolated Energy Deflector | -6/Factory | Extrapolated HERF Cannon | -6/Factory | Hacked Robot Schematics ------------------ None Fabricated ------------ Lgt. Humpback | x1 | -6/Factory Deep Structural Scanner | x1 | -6/Factory Spk. Medium Treads | x2 | -6/Factory Repaired ---------- Nothing Studied --------- None Alien Tech Used ----------------- None Achievements -------------- None Challenges ------------ None Game ------ Seed RecoilPiercingExoskeleton Manual? 0 Play Time 01:04:44 Cumulative 91.1 hours Start 2025.11.14 @ 10:23:55 End 2025.11.14 @ 11:31:57 Sessions 1 Manual Loads 0 Difficulty Explorer Special Mode None Game No. 99 Rogue 0 Adventurer 0 Explorer 99 Win Type - Total 0 Types 0/0/0/0/0/0/0/0/0/0 Lore% 58 Gallery% 56 Achievement% 44 Wizard Run 0 Options --------- Layout 1 ASCII 0 Keyboard 0 Movement Mouse Keybinds 0 Fullscreen 1 Font 24/Smallcaps Map View 50x35 Zoom Use 0% Tactical HUD 1 Map Filters NONE Filters NONE Steam 1 RUN: 85e03da1-9170-40db-8c28-ed1545417c7a